Cogmind - Beta 11 X4 @@@ ROGUE MODE // 2021.05.31 @ 12:38:30 Player: Heavyrisk Result: Self-destructed Performance ------------- Evolutions (3) 1500 Regions Visited (7) 1400 Robots Destroyed (47) 235 Value Destroyed (1443) 1443 Prototype IDs (5) 100 Alien Tech Used (0) 0 Bonus (751) 751 TOTAL SCORE: 5429 Bonus ------- High Alert Combat Kills 51 Entered Garrisons 200 Used RIF Installer 500 Cogmind --------- Core Integrity 700/700 Matter 270/300 Energy 265/265 System Corruption 6% Temperature Cool (0) Movement Treading (360) Ox2 Location -7/Waste Parts ------- > --- POWER (1) -------- Improved Ion Engine > --- PROPULSION (4) --- Improved Treads Improved Treads > --- UTILITY (5) ------ Huge Storage Unit Medium Armor Plating Medium Armor Plating > --- WEAPON (3) ------- Improved Assault Rifle Improved Assault Rifle Improved Assault Rifle > --- INVENTORY (25) --- Light Ion Engine Small Storage Unit Relay Coupler [NC] (29) Relay Coupler [Grunt] (28) Enhanced Gauss Cannon Rocket Launcher Flail Peak State ------------ > --- POWER ------------ Improved Ion Engine > --- PROPULSION ------- Light Treads Light Treads Improved Treads Improved Treads > --- UTILITY ---------- Small Storage Unit Medium Armor Plating Medium Armor Plating > --- WEAPON ----------- Improved Assault Rifle Improved Assault Rifle Improved Assault Rifle > --- INVENTORY -------- Light Ion Engine Huge Storage Unit Relay Coupler [NC] Relay Coupler [Grunt] Rocket Launcher Flail [Rating: 23] Favorites ----------- Power Improved Ion Engine Engine Improved Ion Engine Propulsion Light Treads Treads Light Treads Utility Small Storage Unit Device Heat Sink Storage Small Storage Unit Protection Medium Armor Plating Weapon Improved Assault Rifle Energy Gun Small Laser Energy Cannon Light EM Pulse Cannon Ballistic Gun Improved Assault Rifle Ballistic Cannon Light Cannon Impact Weapon Flail Build | -11 -10 -9 -9 -9 -9 -7 -7 ------- Run | Scr Mat Mat Sto Gar Rec Fac Was Slots Evolved 6 | . . 2 . . . 4 . Power . | . . . . . . . . Propulsion 2 | . . . . . . 2 . Utility 3 | . . 1 . . . 2 . Weapon 1 | . . 1 . . . . . Parts Attached 35 | 8 2 15 . 7 . 3 . Power 4 | 1 . 2 . 1 . . . Engine 4 | 1 . 2 . 1 . . . Core . | . . . . . . . . Reactor . | . . . . . . . . Propulsion 8 | 2 . 2 . 2 . 2 . Treads 8 | 2 . 2 . 2 . 2 . Leg . | . . . . . . . . Wheel . | . . . . . . . . Hover . | . . . . . . . . Flight . | . . . . . . . . Utility 10 | 2 . 3 . 4 . 1 . Device 3 | 1 . 2 . . . . . Storage 4 | 1 . . . 2 . 1 . Processor . | . . . . . . . . Hackware . | . . . . . . . . Protection 3 | . . 1 . 2 . . . Artifact . | . . . . . . . . Weapon 13 | 3 2 8 . . . . . Energy Gun 4 | 2 1 1 . . . . . Energy Cannon 1 | . . 1 . . . . . Ballistic Gun 6 | 1 1 4 . . . . . Ballistic Cannon 1 | . . 1 . . . . . Launcher . | . . . . . . . . Special Weapon . | . . . . . . . . Impact Weapon 1 | . . 1 . . . . . Slashing Weapon . | . . . . . . . . Piercing Weapon . | . . . . . . . . Special Melee Weapon . | . . . . . . . . Unidentified Prototypes 1 | . . 1 . . . . . Parts Lost 7 | . 1 4 . 1 . . 1 Power . | . . . . . . . . Propulsion 2 | . . 1 . . . . 1 Utility 2 | . . 1 . 1 . . . Weapon 3 | . 1 2 . . . . . Highest Loss Streak 2 | . 1 2 . 1 . . 1 Average Slot Usage (%) 97 | . 99 94 100 99 100 84 84 Engine 11 | . 14 11 11 11 11 7 7 Treads 23 | . 28 22 22 22 22 30 30 Device 8 | . 14 15 11 10 . . . Storage 11 | . 14 11 11 11 11 7 7 Protection 11 | . . 6 11 10 22 15 15 Energy Gun 2 | . 8 5 . . . . . Ballistic Gun 28 | . 18 22 33 33 33 23 23 Naked Turns . | . . . . . . . . Heaviest Build 110 | 13 13 25 25 35 35 110 110 Greatest Support 86 | 40 40 40 40 40 40 86 86 Greatest Overweight (x) 1 | . . . . . . 1 1 Average Overweight (x) . | . . . . . . . 1 Largest Inventory Capacity 25 | 8 8 8 8 25 8 25 25 Average Capacity 8 | 7 8 8 8 8 8 23 25 Most Carried 8 | 4 8 8 8 8 8 7 7 Average Carried 7 | 1 6 7 8 7 8 6 6 Final Capacity 25 | 8 8 8 8 8 8 25 25 Final Carried 8 | 4 8 8 8 8 8 6 7 Class Distribution -------------------- 31% | Scavenger-Tank 31% | Tank 20% | Mutant 7% | Scavenger-Mutant 5% | Skirmisher Dominant Class ---------------- Mutant | -10/Materials Scavenger-Mutant | -9/Materials Scavenger-Tank | -9/Storage Scavenger-Tank | -9/Garrison Tank | -9/Recycling Tank | -7/Factory Tank | -7/Waste Resources | -11 -10 -9 -9 -9 -9 -7 -7 ----------- Run | Scr Mat Mat Sto Gar Rec Fac Was Matter Collected 1023 | 302 57 365 . 299 . . . Remotely 237 | . . 237 . . . . . Salvage Created 1608 | 104 130 664 . 614 96 . . Parts 95 | 5 9 39 . 37 5 . . Haulers Intercepted 2 | . . 2 . . . . . Recyclers Shooed 5 | . . 5 . . . . . Parts Field Recycled . | . . . . . . . . Retrieved Matter . | . . . . . . . . Parts Self-Destructed . | . . . . . . . . Prevented . | . . . . . . . . Kills | -11 -10 -9 -9 -9 -9 -7 -7 ------- Run | Scr Mat Mat Sto Gar Rec Fac Was Combat Hostiles Destroyed 38 | . 5 15 . 17 1 . . Melee 1 | . . . . . 1 . . Guns 36 | . 5 14 . 17 . . . Cannons 1 | . . 1 . . . . . Classes Destroyed 9 | 3 2 3 . . 1 . . Worker 2 | 1 . 1 . . . . . Tunneler 1 | 1 . . . . . . . Hauler 2 | . . 2 . . . . . Recycler 4 | 1 . 1 . . 2 . . Drone 1 | . . . . . 1 . . Swarmer 15 | . 3 8 . 4 . . . Grunt 16 | . 2 3 . 11 . . . Duelist 1 | . . 1 . . . . . Sentry 5 | . . 3 . 2 . . . Best Kill Streak 5 | 1 3 3 . 5 2 . . Combat Bots Only 5 | . 3 3 . 5 1 . . Max Kills in Single Turn 2 | 1 1 2 . 2 1 . . Gunslinging . | . . . . . . . . Exploded . | . . . . . . . . Melee 1 | . . . . . 1 . . Uniques/NPCs Destroyed . | . . . . . . . . Combat | -11 -10 -9 -9 -9 -9 -7 -7 -------- Run | Scr Mat Mat Sto Gar Rec Fac Was Damage Taken 1358 | . 323 605 91 303 . . 36 Core 245 | . 65 128 . 52 . . . Absorbed by Shields 3 | . . . . 3 . . . Core Remaining (%) 76 | 100 74 . . . 55 . . Volleys Fired 98 | 8 15 47 . 28 . . . Largest 3 | 2 2 3 . 3 . . . Hottest 95 | 70 70 95 . 69 . . . Shots Fired 252 | 16 30 128 . 78 . . . Gun 247 | 16 30 123 . 78 . . . Cannon 5 | . . 5 . . . . . Launcher . | . . . . . . . . Special . | . . . . . . . . Kinetic 211 | 8 16 109 . 78 . . . Thermal 41 | 8 14 19 . . . . . Explosive . | . . . . . . . . Electromagnetic . | . . . . . . . . Robot Hit Streak 20 | 4 6 15 . 20 . . . Robot Miss Streak 5 | 2 3 5 . 3 . . . Penetration Max . | . . . . . . . . Secondary Targets 3 | . 1 1 . 1 . . . Max Gunslinging Chain 1 | . 1 1 . 1 . . . Shots Hit Robots 155 | 9 16 83 . 47 . . . Core Hits 73 | 4 8 34 . 26 1 . . Critical Kills . | . . . . . . . . Critical Parts Destroyed 1 | . . . . 1 . . . Critical Strikes 1 | . . . . 1 . . . Destroy 1 | . . . . 1 . . . Melee Attacks . | . . . . . . . . Impact . | . . . . . . . . Slashing . | . . . . . . . . Piercing . | . . . . . . . . Sneak Attacks . | . . . . . . . . Combat Hostiles . | . . . . . . . . Follow-up Attacks . | . . . . . . . . Damage Inflicted 1991 | 110 213 904 . 723 41 . . Guns 1889 | 109 213 844 . 723 . . . Cannons 54 | . . 54 . . . . . Explosions . | . . . . . . . . Melee . | . . . . . . . . Ramming 48 | 1 . 6 . . 41 . . Kinetic 1620 | 46 118 733 . 723 . . . Thermal 323 | 63 95 165 . . . . . Explosive . | . . . . . . . . Electromagnetic . | . . . . . . . . Impact . | . . . . . . . . Slashing . | . . . . . . . . Piercing . | . . . . . . . . Highest Corruption 6 | . . . . . . . 6 Average Corruption 6 | . . . . . . . 6 Corruption Purged . | . . . . . . . . Effects 1 | . . . . . . . 1 Heat Flow Errors 1 | . . . . . . . 1 Overload Shots . | . . . . . . . . Overflow Damage . | . . . . . . . . Projectiles . | . . . . . . . . Explosions . | . . . . . . . . Melee . | . . . . . . . . Knockbacks . | . . . . . . . . Impact . | . . . . . . . . Kinetic . | . . . . . . . . Secondary . | . . . . . . . . Self-Inflicted Damage . | . . . . . . . . Shots . | . . . . . . . . Rammed 11 | 1 . 3 . . 7 . . Targets Rammed 14 | 1 . 3 . . 10 . . Kicked . | . . . . . . . . Crushed 3 | . . . . . 3 . . Highest Temperature 203 | 36 49 203 . 9 . . 130 Average Temperature 32 | 15 30 36 . 5 . . 68 Received Heat Transfer 343 | . 60 156 . 127 . . . Siege Activations . | . . . . . . . . Robots Corrupted . | . . . . . . . . Combat Hostiles . | . . . . . . . . Parts Fried . | . . . . . . . . Impact Corruptions . | . . . . . . . . Robots Melted . | . . . . . . . . Combat Hostiles . | . . . . . . . . Parts Melted . | . . . . . . . . Heat Transferred 784 | 185 224 375 . . . . . Parts Sabotaged . | . . . . . . . . Parts Stolen . | . . . . . . . . Parts Stripped . | . . . . . . . . Power Chain Reactions . | . . . . . . . . Missiles Intercepted . | . . . . . . . . Alert | -11 -10 -9 -9 -9 -9 -7 -7 ------- Run | Scr Mat Mat Sto Gar Rec Fac Was Peak Influence 900 | 15 177 416 103 658 315 900 330 Initial 900 | . 9 74 84 68 295 900 315 Average 266 | 6 105 225 100 435 130 900 317 Maximum Alert Level 3 | . . 2 . 2 1 3 1 Low Security (%) 54 | 100 100 50 100 11 86 . . Level 1 18 | . . 32 . 25 13 . 100 Level 2 23 | . . 16 . 62 . . . Level 3 3 | . . . . . . 100 . Level 4 . | . . . . . . . . Level 5 . | . . . . . . . . High Security . | . . . . . . . . Max Security . | . . . . . . . . Squads Dispatched 2 | . 1 1 . . . . . Investigation . | . . . . . . . . Extermination . | . . . . . . . . Reinforcement 2 | . 1 1 . . . . . Assault . | . . . . . . . . Garrison . | . . . . . . . . Intercept . | . . . . . . . . Construction Impeded . | . . . . . . . . Haulers Reinforced . | . . . . . . . . Cargo Convoy Interrupts . | . . . . . . . . Stealth | -11 -10 -9 -9 -9 -9 -7 -7 --------- Run | Scr Mat Mat Sto Gar Rec Fac Was Distress Signals 5 | . 2 3 . . . . . Communications Jammed . | . . . . . . . . Distress Signals . | . . . . . . . . Times Spotted 82 | . 8 23 4 15 31 . 1 Peak Tracking Total 6 | . 4 4 4 4 6 . 1 Tactical Retreats 3 | . . 2 . 1 . . . Traps | -11 -10 -9 -9 -9 -9 -7 -7 ------- Run | Scr Mat Mat Sto Gar Rec Fac Was Traps Triggered 4 | . . . . 3 . 1 . Indirectly . | . . . . . . . . Trap Hack Attempts . | . . . . . . . . Triggered . | . . . . . . . . Disarmed . | . . . . . . . . Reprogrammed . | . . . . . . . . Reused . | . . . . . . . . Traps Extracted . | . . . . . . . . Installed . | . . . . . . . . Triggered . | . . . . . . . . Machines | -11 -10 -9 -9 -9 -9 -7 -7 ---------- Run | Scr Mat Mat Sto Gar Rec Fac Was Machines Disabled 2 | . . . . 2 . . . Max in Single Turn 1 | . . . . 1 . . . Garrison Relay 2 | . . . . 2 . . . Machines Sabotaged . | . . . . . . . . Garrisons Compromised . | . . . . . . . . Overloaded Fab Kills . | . . . . . . . . Fab Network Shutdowns . | . . . . . . . . Hacking | -11 -10 -9 -9 -9 -9 -7 -7 --------- Run | Scr Mat Mat Sto Gar Rec Fac Was Machines Accessed 17 | . 4 3 2 . 7 1 . Terminals 14 | . 4 3 1 . 5 1 . Fabricators . | . . . . . . . . Repair Stations . | . . . . . . . . Recycling Units 2 | . . . . . 2 . . Scanalyzers . | . . . . . . . . Garrison Access 1 | . . . 1 . . . . Total Hacks 48 | . 8 11 9 . 19 1 . Successful 30 | . 6 7 8 . 9 . . Failed 18 | . 2 4 1 . 10 1 . Catastrophic 3 | . . . . . 3 . . Database Lockouts . | . . . . . . . . Manual 23 | . 4 4 6 . 8 1 . Terminals 45 | . 8 11 8 . 17 1 . Fabricators . | . . . . . . . . Repair Stations . | . . . . . . . . Recycling Units 2 | . . . . . 2 . . Scanalyzers . | . . . . . . . . Garrison Access 1 | . . . 1 . . . . Terminal Hacks 18 | . 3 4 6 . 5 . . Part Schematic 2 | . . . 1 . 1 . . Robot Analysis 2 | . . . 2 . . . . Prototype ID Bank 2 | . . . 1 . 1 . . Level Access Points 1 | . 1 . . . . . . Branch Access Points 1 | . . 1 . . . . . Emergency Access Points 1 | . . 1 . . . . . Unreport Threat 3 | . . 1 . . 2 . . Locate Traps 2 | . 1 1 . . . . . Assault Status 1 | . . . . . 1 . . Hauler Manifests 2 | . 1 . 1 . . . . Zone Layout 1 | . . . 1 . . . . Fabricator Hacks . | . . . . . . . . Repair Station Hacks . | . . . . . . . . Recycling Unit Hacks 1 | . . . . . 1 . . Report Inventory 1 | . . . . . 1 . . Scanalyzer . | . . . . . . . . Garrison Access Hacks 1 | . . . 1 . . . . Unlock Access 1 | . . . 1 . . . . Unauthorized Hacks 10 | . 3 3 1 . 3 . . Terminals 10 | . 3 3 1 . 3 . . Assimilate 1 | . . 1 . . . . . Botnet 9 | . 3 2 1 . 3 . . Fabricators . | . . . . . . . . Repair Stations . | . . . . . . . . Recycling Units . | . . . . . . . . Scanalyzers . | . . . . . . . . Garrison Access . | . . . . . . . . Data Cores Recovered . | . . . . . . . . Used . | . . . . . . . . Hacking Detections 16 | . 4 3 2 . 6 1 . Full Trace Events . | . . . . . . . . Feedback Events . | . . . . . . . . Feedback Blocked . | . . . . . . . . Robot Schematics Acquired . | . . . . . . . . Robots Built . | . . . . . . . . Matter . | . . . . . . . . Time . | . . . . . . . . Total Robot Build Rating . | . . . . . . . . Part Schematics Acquired 2 | . . . 1 . 1 . . Parts Built . | . . . . . . . . Matter . | . . . . . . . . Time . | . . . . . . . . Total Part Build Rating . | . . . . . . . . Parts Repaired . | . . . . . . . . Time . | . . . . . . . . Parts Recycled . | . . . . . . . . Recycled Matter . | . . . . . . . . Retrieved Matter . | . . . . . . . . Retrieved Components . | . . . . . . . . Parts Scanalyzed . | . . . . . . . . Part Schematics Acquired . | . . . . . . . . Parts Damaged . | . . . . . . . . Bothacking | -11 -10 -9 -9 -9 -9 -7 -7 ------------ Run | Scr Mat Mat Sto Gar Rec Fac Was Used RIF Installer 1 | . . . . 1 . . . Robots Hacked . | . . . . . . . . Non-combat . | . . . . . . . . Combat . | . . . . . . . . Robot Hacks Applied . | . . . . . . . . Relay Couplers Released 7 | . . . . 7 . . . Machine Destruction 7 | . . . . 7 . . . Robots Rewired . | . . . . . . . . Allies Hacked . | . . . . . . . . Hacks Repelled . | . . . . . . . . Allies | -11 -10 -9 -9 -9 -9 -7 -7 -------- Run | Scr Mat Mat Sto Gar Rec Fac Was Total Allies 2 | . . 1 . . . . 1 Largest Group 1 | . . 1 1 . . . 1 Highest-Rated Group 31 | . . 10 10 . . . 31 Highest-Rated Ally 31 | . . 10 10 . . . 31 Total Orders . | . . . . . . . . Ally Attacks 4 | . . . . . . . 4 Total Damage 64 | . . . . . . . 64 Kills . | . . . . . . . . Allies Corrupted . | . . . . . . . . Allies Melted . | . . . . . . . . Intel | -11 -10 -9 -9 -9 -9 -7 -7 ------- Run | Scr Mat Mat Sto Gar Rec Fac Was Robot Analysis Total 2 | . . . 2 . . . . Derelict Logs Recovered . | . . . . . . . . Drone Launches . | . . . . . . . . Drone Recoveries . | . . . . . . . . Exploration | -11 -10 -9 -9 -9 -9 -7 -7 ------------- Run | Scr Mat Mat Sto Gar Rec Fac Was Turns Passed 2877 | 164 390 584 28 897 666 113 35 Spaces Moved 1481 | 83 203 247 17 466 407 45 13 Core 9 | 9 . . . . . . . Treads 1472 | 74 203 247 17 466 407 45 13 Legs . | . . . . . . . . Wheels . | . . . . . . . . Hover . | . . . . . . . . Flight . | . . . . . . . . Fastest Speed 50 | 50 160 160 160 160 160 160 260 Average Speed 162 | 148 160 160 160 160 160 248 260 Slowest Speed 260 | 160 160 160 160 160 160 260 260 Overloaded Moves . | . . . . . . . . Propulsion Burnouts . | . . . . . . . . Robots Hopped . | . . . . . . . . Cave-ins Triggered . | . . . . . . . . Exploration Rate (%) 27 | 6 29 37 8 58 59 2 19 Regions Visited 7 Branch Regions 2 Pre-discovered Areas . | . . . . . . . . Known Exits Taken 3 | . 1 1 1 . . . . Unknown Exits Taken 2 | 1 . . . . 1 . . Scrap Searched . | . . . . . . . . Spaces Dug . | . . . . . . . . Terrain Destroyed . | . . . . . . . . Melee . | . . . . . . . . Projectile . | . . . . . . . . AOE . | . . . . . . . . Terrain Rammed . | . . . . . . . . Walls Destroyed . | . . . . . . . . Machines Disabled . | . . . . . . . . Actions | -11 -10 -9 -9 -9 -9 -7 -7 --------- Run | Scr Mat Mat Sto Gar Rec Fac Was Total 1744 | 105 239 346 17 559 416 48 14 Wait 75 | . 13 12 . 50 . . . Move 1475 | 82 202 246 17 464 406 45 13 Hop . | . . . . . . . . Pick Up 23 | 6 5 8 . 3 . . 1 Fast Attach 13 | 5 1 6 . 1 . . . Attach 9 | 2 1 4 . . . 2 . Detach 4 | . 1 3 . . . . . Swap 13 | 1 . 5 . 6 . 1 . Drop 18 | . 1 12 . 5 . . . Fire 98 | 8 15 47 . 28 . . . Melee . | . . . . . . . . Ram . | . . . . . . . . Kick . | . . . . . . . . Crush 14 | 1 . 3 . . 10 . . Escape Stasis 2 | . . . . 2 . . . Rewire . | . . . . . . . . Trap . | . . . . . . . . Miscellaneous . | . . . . . . . . Route ------- -11/Scrapyard -10/Materials (discovered 3 exits: *Mat x3) -9/Materials (discovered 4 exits: Min x2 / *Sto x2) -9/Storage -9/Garrison (discovered 2 exits: *Rec x2) -9/Recycling -7/Factory -7/Waste History --------- Turn | Location | Event 2 | -11/Scrapyard | Discovered new exit (range 16) 165 | -11/Scrapyard | Entered Materials 318 | -10/Materials | Build established: Mutant 445 | -10/Materials | Discovered new exit (range 16) 447 | -10/Materials | Identified exit to Materials 555 | -10/Materials | Entered another Materials area 555 | -9/Materials | Evolved 2 slots: Utility x1, Weapon x1 841 | -9/Materials | Identified exit to Mines 841 | -9/Materials | Identified exit to Storage 1139 | -9/Materials | Entered Storage 1139 | -9/Storage | Accompanied by 1 ally 1167 | -9/Storage | Identified exit to Garrison 1167 | -9/Storage | Entered Garrison 1291 | -9/Garrison | Build established: Scavenger-Tank 1352 | -9/Garrison | Triggered checkpoint 1409 | -9/Garrison | Discovered new exit (range 13) 1480 | -9/Garrison | Triggered checkpoint 1560 | -9/Garrison | Discovered new exit (range 15) 1598 | -9/Garrison | Installed Relay Interface Framework 1652 | -9/Garrison | Triggered checkpoint 1669 | -9/Garrison | Garrison Relay disabled 1934 | -9/Garrison | Triggered checkpoint 2005 | -9/Garrison | Garrison Relay disabled 2064 | -9/Garrison | Entered Recycling 2108 | -9/Recycling | Spotter reported a threat 2112 | -9/Recycling | Spotter reported a threat 2126 | -9/Recycling | Spotter reported a threat 2126 | -9/Recycling | Spotter reported a threat 2142 | -9/Recycling | Spotter reported a threat 2155 | -9/Recycling | Spotter reported a threat 2161 | -9/Recycling | Spotter reported a threat 2165 | -9/Recycling | Spotter reported a threat 2179 | -9/Recycling | Spotter reported a threat 2195 | -9/Recycling | Spotter reported a threat 2256 | -9/Recycling | Spotter reported a threat 2270 | -9/Recycling | Spotter reported a threat 2276 | -9/Recycling | Build established: Tank 2330 | -9/Recycling | Spotter reported a threat 2342 | -9/Recycling | Spotter reported a threat 2356 | -9/Recycling | Spotter reported a threat 2359 | -9/Recycling | Spotter reported a threat 2383 | -9/Recycling | Spotter reported a threat 2412 | -9/Recycling | Spotter reported a threat 2447 | -9/Recycling | Spotter reported a threat 2493 | -9/Recycling | Spotter reported a threat 2503 | -9/Recycling | Spotter reported a threat 2516 | -9/Recycling | Spotter reported a threat 2518 | -9/Recycling | Spotter reported a threat 2518 | -9/Recycling | Spotter reported a threat 2556 | -9/Recycling | Spotter reported a threat 2571 | -9/Recycling | Spotter reported a threat 2571 | -9/Recycling | Spotter reported a threat 2572 | -9/Recycling | Spotter reported a threat 2583 | -9/Recycling | Spotter reported a threat 2585 | -9/Recycling | Spotter reported a threat 2585 | -9/Recycling | Spotter reported a threat 2591 | -9/Recycling | Spotter reported a threat 2609 | -9/Recycling | Spotter reported a threat 2624 | -9/Recycling | Spotter reported a threat 2638 | -9/Recycling | Spotter reported a threat 2644 | -9/Recycling | Spotter reported a threat 2660 | -9/Recycling | Spotter reported a threat 2671 | -9/Recycling | Spotter reported a threat 2677 | -9/Recycling | Spotter reported a threat 2690 | -9/Recycling | Spotter reported a threat 2691 | -9/Recycling | Spotter reported a threat 2708 | -9/Recycling | Discovered new exit (range 5) 2713 | -9/Recycling | Spotter reported a threat 2724 | -9/Recycling | Spotter reported a threat 2730 | -9/Recycling | Entered Factory 2730 | -7/Factory | Evolved 4 slots: Propulsion x2, Utility x2 2843 | -7/Factory | Sucked down chute 2843 | -7/Factory | Entered Waste 2844 | -7/Waste | Met a frightened Derelict 2858 | -7/Waste | EMP discharged 2863 | -7/Waste | Spotted C-40 Crusher 2878 | -7/Waste | Crushed by Compactor (1 part destroyed, 1 dropped) 2878 | -7/Waste | Self-destructed Last Messages --------------- 02841_ Connecting with Terminal... 02841_ Current location identified: Factory 02843_ Triggered Chute Trap. 02843_ A hatch slides open and sucks a vortex of air into the floor. LOCATION=UNKNOWN GOAL=ESCAPE 02844_ E2-Z97(g): "Oh no, you too?! We need to get out of this place, preferably unseen. I've heard terrible stories about what compactors can do if you allow them to get too close... Maybe together we can make it." 02848_ ALERT: Foreign system detected. Charging EMP. 02856_ Acquired Enh. Gauss Cannon. 02858_ System corrupted (+6). 02868_ System corrupted: Heat flow error (+148). 02870_ C-40 Crusher suffers critical hit (Burn). 02873_ E2-Z97(g) Lgt. Angular Momentum Engine crushed. 02873_ E2-Z97(g) Carbon-fiber Leg crushed. 02873_ E2-Z97(g) suffers critical hit (Destroy). 02873_ E2-Z97(g) destroyed. 02876_ 69 Matter crushed. 02878_ Lgt. Treads crushed. Map ----- +----------------------------------------------------+ | ?????????????????????????????????????????????????? | | ?????????????????????????????????????????????????? | | ?????????????????????????????????????????????????? | | ?????????????????????????????????????????????????? | | ?????????????????????????????????????????????????? | | ?????????????????????????????????????????????????? | | ?????????????????????????????????????????????????? | | ?????????????????????????????????????????????????? | | ?????????????????????????????????????????????????? | | ?????????????????????????????????????????????????? | | ??????????????????????? ??????????????????????? | | ??????????????????????# #?????????????????????? | | ?????????????????????## ###???????????????????? | | ????????????????????? ??????????????????? | | ?????????????????????? ???????????????????? | | ?????????????????????? ????????????????????? | | ?????????????????????? ?????????????????????? | | ??????????????????????# #?????????????????????? | | ????????############??# #?????????????????????? | | ????????# #??# #?????????????????????? | | ????????# #??# #????????? ??????????? | | ????????# #### ######## #?????????? | | ????????# ?????????? | | ????????# [= CC ????????? | | ????????# ! CC * ????????? | | ????????# @ ????????? | | ????????# #### #######???????????????? | | ????????# #??# #?????????????????????? | | ????????# #??# #?????????????????????? | | ????????############??# #?????????????????????? | | ??????????????????????# #?????????????????????? | | ??????????????????????######?????????????????????? | | ?????????????????????????????????????????????????? | | ?????????????????????????????????????????????????? | | ?????????????????????????????????????????????????? | | ?????????????????????????????????????????????????? | | ?????????????????????????????????????????????????? | | ?????????????????????????????????????????????????? | | ?????????????????????????????????????????????????? | | ?????????????????????????????????????????????????? | | ?????????????????????????????????????????????????? | | ?????????????????????????????????????????????????? | | ?????????????????????????????????????????????????? | | ?????????????????????????????????????????????????? | | ?????????????????????????????????????????????????? | | ?????????????????????????????????????????????????? | | ?????????????????????????????????????????????????? | | ?????????????????????????????????????????????????? | | ?????????????????????????????????????????????????? | | ?????????????????????????????????????????????????? | +----------------------------------------------------+ Best States ------------- Heat Dissipation 38 Energy Generation 12 Energy Capacity 265 Matter Stores 300 Matter Capacity 300 Sight Range 16 Terrain Scan Range 16 Terrain Scan Density 10 Armor Coverage 450 Evasion (%) 40 Recoil Reduction 4 Item Schematics ----------------- Lrg. Storage Unit | -9/Storage | Hacked Adv. ECM Suite | -9/Recycling | Hacked Robot Schematics ------------------ None Fabricated ------------ Nothing Alien Tech Used ----------------- None Achievements -------------- None Challenges ------------ None Game ------ Seed PlasmaWeaponDoublenader Manual? 0 Play Time 00:26:23 Cumulative 236.4 hours Start 2021.05.31 @ 12:05:46 End 2021.05.31 @ 12:38:30 Sessions 1 Manual Loads 0 Difficulty Rogue Special Mode None Game No. 176 Rogue 176 Adventurer 0 Explorer 0 Win Type - Total 1 Types 1/0/0/0/0/0/0/0/0 Lore% 58 Gallery% 65 Achievement% 45 Wizard Run 0 Options --------- ASCII 0 Keyboard 0 Movement Arrows Keybinds 0 Fullscreen 1 Font 18/SmallcapsGlow Map View 76x50 Tactical HUD 1 Map Filters NONE Filters NONE Steam 1 RUN: 3bef17fe-9125-461e-ad68-4ef6fd69701f